[Event "*** SCC Grand Prix: Titled Tuesday Blitz"]
[Site "Chess.com"]
[Date "2020.06.02"]
[Round "7"]
[White "GMaka"]
[Black "Kildepiotr"]
[Result "1-0"]
[WhiteElo "2365"]
[BlackElo "2457"]
[TimeControl "180+1"]
[EndTime "11:21:35 PDT"]
[Termination "GMaka won by resignation"]

1. d4 {[%clk 0:03:00.9]} 1... c5 {[%clk 0:02:59.7]} 2. d5 {[%clk 0:03:01]} 2...
e5 {[%clk 0:03:00]} 3. Nc3 {[%clk 0:03:00.8]} 3... d6 {[%clk 0:03:00.4]} 4. e4
{[%clk 0:03:01.7]} 4... Be7 {[%clk 0:03:00.9]} 5. Nf3 {[%clk 0:02:59.9]} 5...
Bg4 {[%clk 0:03:00.2]} 6. Be2 {[%clk 0:03:00.3]} 6... Bxf3 {[%clk 0:03:00.2]} 7.
gxf3 {[%clk 0:03:01.2]} 7... Bg5 {[%clk 0:03:00.6]} 8. Be3 {[%clk 0:02:59.9]}
8... Bxe3 {[%clk 0:02:59.6]} 9. fxe3 {[%clk 0:03:00.8]} 9... Qh4+ {[%clk
0:02:59.6]} 10. Kd2 {[%clk 0:03:00.6]} 10... a6 {[%clk 0:02:58.5]} 11. a4 {[%clk
0:03:00.2]} 11... Ne7 {[%clk 0:02:57.9]} 12. a5 {[%clk 0:03:00.2]} 12... O-O
{[%clk 0:02:56]} 13. Qe1 {[%clk 0:03:00.5]} 13... Qh6 {[%clk 0:02:51.5]} 14. Qg3
{[%clk 0:02:58.8]} 14... f5 {[%clk 0:02:51]} 15. Rag1 {[%clk 0:02:56.9]} 15...
Nd7 {[%clk 0:02:50]} 16. h4 {[%clk 0:02:55.9]} 16... f4 {[%clk 0:02:45]} 17. Qg5
{[%clk 0:02:40.3]} 17... fxe3+ {[%clk 0:02:44.5]} 18. Kxe3 {[%clk 0:02:41.2]}
18... Rf6 {[%clk 0:02:32.3]} 19. Qxh6 {[%clk 0:02:36.2]} 19... Rxh6 {[%clk
0:02:32.1]} 20. h5 {[%clk 0:02:35.2]} 20... Rf8 {[%clk 0:02:18.2]} 21. Nd1
{[%clk 0:02:20]} 21... Nf6 {[%clk 0:02:07.7]} 22. Rg5 {[%clk 0:02:17.2]} 22...
g6 {[%clk 0:02:07.6]} 23. b3 {[%clk 0:01:32.8]} 23... Rxh5 {[%clk 0:02:03.3]}
24. Rgxh5 {[%clk 0:01:31.1]} 24... Nxh5 {[%clk 0:02:04.2]} 25. Nb2 {[%clk
0:01:31.3]} 25... Nf4 {[%clk 0:01:58.6]} 26. Nc4 {[%clk 0:01:30.6]} 26... Rf6
{[%clk 0:01:52.6]} 27. c3 {[%clk 0:01:30.3]} 27... g5 {[%clk 0:01:43]} 28. b4
{[%clk 0:01:27.6]} 28... cxb4 {[%clk 0:01:42.5]} 29. cxb4 {[%clk 0:01:28.5]}
29... Nxe2 {[%clk 0:01:37]} 30. Kxe2 {[%clk 0:01:28.2]} 30... Ng6 {[%clk
0:01:37.2]} 31. Nb6 {[%clk 0:01:17.4]} 31... h5 {[%clk 0:01:29.5]} 32. Ke3
{[%clk 0:01:13.7]} 32... Nh4 {[%clk 0:01:22.4]} 33. Rh3 {[%clk 0:01:11.2]} 33...
Kg7 {[%clk 0:01:16.3]} 34. Nc8 {[%clk 0:00:49.2]} 34... Kf7 {[%clk 0:01:03.2]}
35. Rg3 {[%clk 0:00:48]} 35... Rg6 {[%clk 0:00:56.9]} 36. Rg1 {[%clk 0:00:47.1]}
36... g4 {[%clk 0:00:49.2]} 37. fxg4 {[%clk 0:00:41.4]} 37... hxg4 {[%clk
0:00:48.7]} 38. Kf2 {[%clk 0:00:40.5]} 38... Nf3 {[%clk 0:00:45.2]} 39. Rc1
{[%clk 0:00:39.3]} 39... Nd2 {[%clk 0:00:25.2]} 40. Ke3 {[%clk 0:00:32.4]} 40...
Nb3 {[%clk 0:00:24.6]} 41. Rc7+ {[%clk 0:00:33.3]} 41... Kf8 {[%clk 0:00:24.1]}
42. Kf2 {[%clk 0:00:32.1]} 42... g3+ {[%clk 0:00:23.1]} 43. Kg2 {[%clk
0:00:32.3]} 43... Nd2 {[%clk 0:00:22.9]} 44. Rxb7 {[%clk 0:00:23.8]} 44... Nxe4
{[%clk 0:00:22.6]} 45. b5 {[%clk 0:00:21.6]} 45... axb5 {[%clk 0:00:18.8]} 46.
a6 {[%clk 0:00:20.6]} 46... Rf6 {[%clk 0:00:17.5]} 47. a7 {[%clk 0:00:18.6]}
47... Rf2+ {[%clk 0:00:16.8]} 48. Kg1 {[%clk 0:00:17.7]} 48... Ra2 {[%clk
0:00:16.2]} 49. Nb6 {[%clk 0:00:16.1]} 49... Nc5 {[%clk 0:00:13.2]} 50. Rb8+
{[%clk 0:00:12.1]} 50... Kf7 {[%clk 0:00:13.4]} 51. a8=Q {[%clk 0:00:12.2]}
51... Rxa8 {[%clk 0:00:13.2]} 52. Nxa8 {[%clk 0:00:12.9]} 52... Kf6 {[%clk
0:00:12.4]} 53. Rxb5 {[%clk 0:00:12.3]} 53... e4 {[%clk 0:00:12.6]} 54. Nc7
{[%clk 0:00:12.1]} 54... Ke5 {[%clk 0:00:12.8]} 55. Kg2 {[%clk 0:00:10.9]} 55...
Kd4 {[%clk 0:00:09.8]} 56. Kxg3 {[%clk 0:00:10.8]} 56... Kd3 {[%clk 0:00:10]}
57. Rxc5 {[%clk 0:00:09.8]} 57... dxc5 {[%clk 0:00:09.9]} 58. d6 {[%clk
0:00:10.3]} 58... e3 {[%clk 0:00:10.3]} 59. Nd5 {[%clk 0:00:09.7]} 59... c4
{[%clk 0:00:06.1]} 60. Nf4+ {[%clk 0:00:09.9]} 60... Kd2 {[%clk 0:00:05.9]} 61.
d7 {[%clk 0:00:10.8]} 61... c3 {[%clk 0:00:06.5]} 62. d8=Q+ {[%clk 0:00:11.1]}
62... Kc1 {[%clk 0:00:06.6]} 63. Qd3 {[%clk 0:00:11]} 1-0

[Event "*** SCC Grand Prix: Titled Tuesday Blitz"]
[Site "Chess.com"]
[Date "2020.06.02"]
[Round "7"]
[White "kintoho"]
[Black "Moon_stone123"]
[Result "0-1"]
[WhiteElo "2352"]
[BlackElo "2476"]
[TimeControl "180+1"]
[EndTime "11:21:37 PDT"]
[Termination "Moon_stone123 won by checkmate"]

1. e4 {[%clk 0:03:00.9]} 1... c5 {[%clk 0:02:59.8]} 2. Nf3 {[%clk 0:02:57.9]}
2... d6 {[%clk 0:02:59.7]} 3. Bc4 {[%clk 0:02:56.8]} 3... Nf6 {[%clk 0:02:56.8]}
4. d3 {[%clk 0:02:57.1]} 4... g6 {[%clk 0:02:56.4]} 5. h3 {[%clk 0:02:56.1]}
5... Bg7 {[%clk 0:02:56.5]} 6. O-O {[%clk 0:02:55.4]} 6... O-O {[%clk 0:02:57]}
7. c3 {[%clk 0:02:55.6]} 7... Nc6 {[%clk 0:02:57.4]} 8. a4 {[%clk 0:02:54.6]}
8... Rb8 {[%clk 0:02:56.8]} 9. Nbd2 {[%clk 0:02:53.4]} 9... a6 {[%clk 0:02:57]}
10. Re1 {[%clk 0:02:50.2]} 10... b5 {[%clk 0:02:56.9]} 11. Ba2 {[%clk
0:02:49.9]} 11... b4 {[%clk 0:02:56.3]} 12. d4 {[%clk 0:02:48]} 12... bxc3
{[%clk 0:02:54.2]} 13. bxc3 {[%clk 0:02:47.3]} 13... cxd4 {[%clk 0:02:54.3]} 14.
cxd4 {[%clk 0:02:47.3]} 14... Nb4 {[%clk 0:02:50.8]} 15. Bc4 {[%clk 0:02:45.2]}
15... d5 {[%clk 0:02:41.3]} 16. exd5 {[%clk 0:02:42.9]} 16... Nfxd5 {[%clk
0:02:42.2]} 17. Ne4 {[%clk 0:02:37.1]} 17... Bf5 {[%clk 0:02:35]} 18. Ba3 {[%clk
0:02:21.3]} 18... Bxe4 {[%clk 0:02:28.5]} 19. Rxe4 {[%clk 0:02:21.3]} 19... Nc3
{[%clk 0:02:28.6]} 20. Qe1 {[%clk 0:02:18.9]} 20... Nxe4 {[%clk 0:02:23.5]} 21.
Bxb4 {[%clk 0:02:19.1]} 21... Nd6 {[%clk 0:02:22.2]} 22. Bxa6 {[%clk 0:02:18.8]}
22... Qb6 {[%clk 0:02:18.5]} 23. Bxd6 {[%clk 0:02:04]} 23... Qxd6 {[%clk
0:02:15.4]} 24. Bb5 {[%clk 0:02:02]} 24... Bxd4 {[%clk 0:02:04]} 25. Rd1 {[%clk
0:02:01.8]} 25... e5 {[%clk 0:02:04.4]} 26. Qe2 {[%clk 0:01:44.4]} 26... Rfd8
{[%clk 0:01:57.8]} 27. Re1 {[%clk 0:01:43.5]} 27... f6 {[%clk 0:01:40.4]} 28. h4
{[%clk 0:01:41.6]} 28... Kg7 {[%clk 0:01:40.1]} 29. h5 {[%clk 0:01:41.2]} 29...
Rdc8 {[%clk 0:01:20.9]} 30. Nh4 {[%clk 0:01:36.3]} 30... Qc5 {[%clk 0:01:10.3]}
31. hxg6 {[%clk 0:01:23.4]} 31... hxg6 {[%clk 0:01:10.1]} 32. Rf1 {[%clk
0:01:20.2]} 32... Qb4 {[%clk 0:00:38.6]} 33. Qd3 {[%clk 0:01:09.7]} 33... f5
{[%clk 0:00:33.7]} 34. Qg3 {[%clk 0:01:09]} 34... Rb6 {[%clk 0:00:26.6]} 35.
Nxf5+ {[%clk 0:01:07.7]} 35... Kf6 {[%clk 0:00:27]} 36. Ne3 {[%clk 0:01:05.1]}
36... Kg7 {[%clk 0:00:23.7]} 37. Nd5 {[%clk 0:01:04]} 37... Qc5 {[%clk
0:00:24.1]} 38. Nxb6 {[%clk 0:01:03.6]} 38... Qxb6 {[%clk 0:00:25]} 39. Bd3
{[%clk 0:00:50.1]} 39... Rc3 {[%clk 0:00:24.2]} 40. Rd1 {[%clk 0:00:50]} 40...
e4 {[%clk 0:00:23.6]} 41. a5 {[%clk 0:00:42]} 41... Qc5 {[%clk 0:00:21.6]} 42.
a6 {[%clk 0:00:40]} 42... Rxd3 {[%clk 0:00:20.4]} 43. Rxd3 {[%clk 0:00:37.7]}
43... exd3 {[%clk 0:00:20.6]} 44. Qxd3 {[%clk 0:00:37.6]} 44... Bxf2+ {[%clk
0:00:20.9]} 45. Kh2 {[%clk 0:00:35.2]} 45... Qh5+ {[%clk 0:00:20.5]} 46. Qh3
{[%clk 0:00:33.6]} 46... Qxh3+ {[%clk 0:00:20.7]} 47. gxh3 {[%clk 0:00:25.7]}
47... Kf6 {[%clk 0:00:20.5]} 48. Kg2 {[%clk 0:00:25.8]} 48... Ba7 {[%clk
0:00:20.9]} 49. Kf3 {[%clk 0:00:26.1]} 49... Kg5 {[%clk 0:00:21.4]} 50. Kg2
{[%clk 0:00:23.8]} 50... Kh4 {[%clk 0:00:21.3]} 51. Kh2 {[%clk 0:00:23.7]} 51...
Bb8+ {[%clk 0:00:21.8]} 52. Kg2 {[%clk 0:00:23.9]} 52... Ba7 {[%clk 0:00:21]}
53. Kh2 {[%clk 0:00:23.7]} 53... g5 {[%clk 0:00:21.3]} 54. Kg2 {[%clk
0:00:23.6]} 54... Bb8 {[%clk 0:00:21.4]} 55. Kh1 {[%clk 0:00:19.4]} 55... Ba7
{[%clk 0:00:17.6]} 56. Kh2 {[%clk 0:00:18.4]} 56... Bb6 {[%clk 0:00:17.2]} 57.
Kh1 {[%clk 0:00:18]} 57... Be3 {[%clk 0:00:16.5]} 58. Kh2 {[%clk 0:00:17.9]}
58... Bb6 {[%clk 0:00:16.2]} 59. Kh1 {[%clk 0:00:18]} 59... Kg3 {[%clk
0:00:13.1]} 60. h4 {[%clk 0:00:13.8]} 60... Kxh4 {[%clk 0:00:13.2]} 61. Kg2
{[%clk 0:00:12.9]} 61... g4 {[%clk 0:00:13.2]} 62. Kf1 {[%clk 0:00:12.6]} 62...
Ba7 {[%clk 0:00:13.7]} 63. Kg2 {[%clk 0:00:12.8]} 63... g3 {[%clk 0:00:13.5]}
64. Kh1 {[%clk 0:00:12.7]} 64... Kg4 {[%clk 0:00:13.4]} 65. Kg2 {[%clk
0:00:12.8]} 65... Kf4 {[%clk 0:00:13.4]} 66. Kh3 {[%clk 0:00:12.7]} 66... Bb6
{[%clk 0:00:13.3]} 67. Kg2 {[%clk 0:00:12.7]} 67... Kg4 {[%clk 0:00:13.6]} 68.
Kh1 {[%clk 0:00:12.7]} 68... Kh3 {[%clk 0:00:13.3]} 69. a7 {[%clk 0:00:12]}
69... g2# {[%clk 0:00:13.9]} 0-1

[Event "*** SCC Grand Prix: Titled Tuesday Blitz"]
[Site "Chess.com"]
[Date "2020.06.02"]
[Round "7"]
[White "Sam_ChessMood"]
[Black "vaishali2001"]
[Result "0-1"]
[WhiteElo "2823"]
[BlackElo "2620"]
[TimeControl "180+1"]
[EndTime "11:21:38 PDT"]
[Termination "vaishali2001 won by resignation"]

1. e4 {[%clk 0:03:00.9]} 1... e5 {[%clk 0:02:57.1]} 2. Nf3 {[%clk 0:03:01]} 2...
Nc6 {[%clk 0:02:57.3]} 3. Bb5 {[%clk 0:03:01.2]} 3... a6 {[%clk 0:02:57.6]} 4.
Ba4 {[%clk 0:03:01.5]} 4... Nf6 {[%clk 0:02:58.1]} 5. O-O {[%clk 0:03:01.5]}
5... Be7 {[%clk 0:02:57.2]} 6. Re1 {[%clk 0:03:01.9]} 6... b5 {[%clk 0:02:57.1]}
7. Bb3 {[%clk 0:03:02.2]} 7... O-O {[%clk 0:02:57.7]} 8. a4 {[%clk 0:02:58.3]}
8... Bb7 {[%clk 0:02:56.1]} 9. d3 {[%clk 0:02:50.8]} 9... d6 {[%clk 0:02:31.2]}
10. c3 {[%clk 0:02:35.2]} 10... Na5 {[%clk 0:02:24]} 11. Bc2 {[%clk 0:02:35.3]}
11... c5 {[%clk 0:02:24.6]} 12. d4 {[%clk 0:02:32.8]} 12... cxd4 {[%clk
0:02:21.6]} 13. cxd4 {[%clk 0:02:32.8]} 13... d5 {[%clk 0:02:00.3]} 14. dxe5
{[%clk 0:02:14.1]} 14... Nxe4 {[%clk 0:01:59.1]} 15. axb5 {[%clk 0:02:08.7]}
15... axb5 {[%clk 0:01:39.2]} 16. Nc3 {[%clk 0:02:08.7]} 16... Bc5 {[%clk
0:01:31.4]} 17. Nxe4 {[%clk 0:01:40.9]} 17... dxe4 {[%clk 0:01:32.3]} 18. Qxd8
{[%clk 0:01:40.7]} 18... Rfxd8 {[%clk 0:01:09.9]} 19. Bxe4 {[%clk 0:01:28.3]}
19... Bxe4 {[%clk 0:01:05.2]} 20. Rxe4 {[%clk 0:01:29.2]} 20... Nb3 {[%clk
0:00:59.2]} 21. Rxa8 {[%clk 0:01:26.6]} 21... Rxa8 {[%clk 0:01:00.1]} 22. Re1
{[%clk 0:01:25.4]} 22... Ra1 {[%clk 0:00:21.9]} 23. Bd2 {[%clk 0:01:10.1]} 23...
Rxe1+ {[%clk 0:00:20.6]} 24. Bxe1 {[%clk 0:01:10.4]} 24... Nd4 {[%clk
0:00:20.7]} 25. Nxd4 {[%clk 0:00:59]} 25... Bxd4 {[%clk 0:00:21.6]} 26. Bc3
{[%clk 0:00:59.3]} 26... Bc5 {[%clk 0:00:20.4]} 27. Kf1 {[%clk 0:00:37.1]} 27...
Kf8 {[%clk 0:00:19.9]} 28. Ke2 {[%clk 0:00:35.9]} 28... Ke7 {[%clk 0:00:20.1]}
29. f4 {[%clk 0:00:26.7]} 29... Ke6 {[%clk 0:00:20.1]} 30. Kd3 {[%clk
0:00:21.1]} 30... Kd5 {[%clk 0:00:11.5]} 31. b3 {[%clk 0:00:17.3]} 31... h5
{[%clk 0:00:10.3]} 32. g3 {[%clk 0:00:15.2]} 32... g6 {[%clk 0:00:10.5]} 33. h3
{[%clk 0:00:15.4]} 33... Bg1 {[%clk 0:00:08]} 34. g4 {[%clk 0:00:14.5]} 34...
hxg4 {[%clk 0:00:08.4]} 35. hxg4 {[%clk 0:00:15.4]} 35... Bh2 {[%clk 0:00:09]}
36. Ke3 {[%clk 0:00:14.9]} 36... Bg1+ {[%clk 0:00:09.6]} 37. Kf3 {[%clk
0:00:14.3]} 37... Bb6 {[%clk 0:00:09.4]} 38. Bb2 {[%clk 0:00:13.9]} 38... Bc5
{[%clk 0:00:09.2]} 39. f5 {[%clk 0:00:12.9]} 39... gxf5 {[%clk 0:00:03.7]} 40.
gxf5 {[%clk 0:00:13.8]} 40... Ba7 {[%clk 0:00:04.2]} 41. Kf4 {[%clk 0:00:11]}
41... Bb8 {[%clk 0:00:04.7]} 42. Bc3 {[%clk 0:00:07.4]} 42... f6 {[%clk
0:00:04.7]} 43. Bb2 {[%clk 0:00:06.4]} 43... Bc7 {[%clk 0:00:04.3]} 44. Bc3
{[%clk 0:00:05.3]} 44... Bb8 {[%clk 0:00:04.3]} 45. Bb2 {[%clk 0:00:05.6]} 45...
b4 {[%clk 0:00:04.5]} 46. Ba1 {[%clk 0:00:04.8]} 46... Bc7 {[%clk 0:00:05]} 47.
Bb2 {[%clk 0:00:04.9]} 47... Bb8 {[%clk 0:00:04.3]} 48. Ba1 {[%clk 0:00:05.2]}
48... fxe5+ {[%clk 0:00:04]} 49. Kg5 {[%clk 0:00:04.8]} 49... e4 {[%clk
0:00:04]} 50. Bb2 {[%clk 0:00:05.1]} 50... e3 {[%clk 0:00:03.1]} 51. Bc1 {[%clk
0:00:05.4]} 51... e2 {[%clk 0:00:03.5]} 52. Bd2 {[%clk 0:00:05.8]} 52... Bd6
{[%clk 0:00:03.9]} 53. f6 {[%clk 0:00:04.4]} 53... Kd4 {[%clk 0:00:04.4]} 54. f7
{[%clk 0:00:04]} 54... Kd3 {[%clk 0:00:04.9]} 55. Be1 {[%clk 0:00:04.5]} 55...
Kc2 {[%clk 0:00:05.2]} 56. Kf6 {[%clk 0:00:04.9]} 56... Kxb3 {[%clk 0:00:05.8]}
57. Ke6 {[%clk 0:00:04.7]} 57... Bc5 {[%clk 0:00:06.3]} 58. Kd5 {[%clk
0:00:04.3]} 58... Bf8 {[%clk 0:00:06.8]} 59. Kd4 {[%clk 0:00:02.4]} 59... Kc2
{[%clk 0:00:07.1]} 60. Ke3 {[%clk 0:00:03]} 60... b3 {[%clk 0:00:07.1]} 61. Kxe2
{[%clk 0:00:03.1]} 61... b2 {[%clk 0:00:07.6]} 0-1

[Event "*** SCC Grand Prix: Titled Tuesday Blitz"]
[Site "Chess.com"]
[Date "2020.06.02"]
[Round "7"]
[White "Witik"]
[Black "PavelChernomordik"]
[Result "0-1"]
[WhiteElo "2536"]
[BlackElo "2265"]
[TimeControl "180+1"]
[EndTime "11:21:39 PDT"]
[Termination "PavelChernomordik won by resignation"]

1. d4 {[%clk 0:03:00.9]} 1... g6 {[%clk 0:02:59]} 2. e4 {[%clk 0:03:00.6]} 2...
Bg7 {[%clk 0:02:59.3]} 3. Nc3 {[%clk 0:03:01.3]} 3... d6 {[%clk 0:02:58]} 4. g3
{[%clk 0:03:00.9]} 4... Nf6 {[%clk 0:02:54.9]} 5. Bg2 {[%clk 0:03:00.5]} 5...
O-O {[%clk 0:02:54.5]} 6. Nge2 {[%clk 0:03:00]} 6... Nbd7 {[%clk 0:02:54.5]} 7.
O-O {[%clk 0:02:59.6]} 7... c5 {[%clk 0:02:54.4]} 8. d5 {[%clk 0:02:57.8]} 8...
Rb8 {[%clk 0:02:52.9]} 9. a4 {[%clk 0:02:57.4]} 9... b6 {[%clk 0:02:50.9]} 10.
h3 {[%clk 0:02:53.2]} 10... a6 {[%clk 0:02:48.5]} 11. g4 {[%clk 0:02:49]} 11...
b5 {[%clk 0:02:46.2]} 12. axb5 {[%clk 0:02:49.2]} 12... axb5 {[%clk 0:02:44.9]}
13. Ng3 {[%clk 0:02:49.8]} 13... b4 {[%clk 0:02:42.2]} 14. Nce2 {[%clk
0:02:49.9]} 14... Qb6 {[%clk 0:02:40.4]} 15. g5 {[%clk 0:02:46.1]} 15... Ne8
{[%clk 0:02:38.5]} 16. f4 {[%clk 0:02:37.1]} 16... Ba6 {[%clk 0:02:37.2]} 17. h4
{[%clk 0:02:24.7]} 17... Nc7 {[%clk 0:02:21.8]} 18. h5 {[%clk 0:02:23.4]} 18...
Nb5 {[%clk 0:02:18.6]} 19. h6 {[%clk 0:02:19.3]} 19... Bh8 {[%clk 0:02:16.5]}
20. e5 {[%clk 0:01:41.7]} 20... dxe5 {[%clk 0:02:12.7]} 21. f5 {[%clk
0:01:41.7]} 21... Nd4 {[%clk 0:02:11.4]} 22. Nxd4 {[%clk 0:01:41.7]} 22... exd4
{[%clk 0:02:06.4]} 23. Re1 {[%clk 0:00:40.6]} 23... c4 {[%clk 0:01:54]} 24. Kh2
{[%clk 0:00:30.6]} 24... Qd6 {[%clk 0:01:43.7]} 25. Rxa6 {[%clk 0:00:25.8]}
25... Qxa6 {[%clk 0:01:40.3]} 26. Rxe7 {[%clk 0:00:17.7]} 26... Qd6 {[%clk
0:01:38.8]} 27. f6 {[%clk 0:00:18.1]} 27... Nxf6 {[%clk 0:01:37.1]} 28. gxf6
{[%clk 0:00:18.3]} 28... Bxf6 {[%clk 0:01:35.1]} 29. Re4 {[%clk 0:00:14.6]}
29... Rfe8 {[%clk 0:01:31.3]} 30. Bf4 {[%clk 0:00:13.7]} 30... Be5 {[%clk
0:01:30.4]} 31. Qf3 {[%clk 0:00:10.1]} 31... Bxf4 {[%clk 0:01:24.7]} 32. Qxf4
{[%clk 0:00:10.5]} 32... Qxf4 {[%clk 0:01:21.7]} 33. Rxf4 {[%clk 0:00:11.4]}
33... d3 {[%clk 0:01:17.4]} 34. Rxc4 {[%clk 0:00:09.7]} 34... dxc2 {[%clk
0:01:04.2]} 35. Rxc2 {[%clk 0:00:09.8]} 35... f5 {[%clk 0:01:03.7]} 36. Rd2
{[%clk 0:00:07.3]} 36... Kf7 {[%clk 0:01:01.1]} 37. Ne2 {[%clk 0:00:07.3]} 37...
Kf6 {[%clk 0:00:55.4]} 38. d6 {[%clk 0:00:06]} 38... Red8 {[%clk 0:00:52.6]} 39.
Nf4 {[%clk 0:00:04.1]} 39... Ke5 {[%clk 0:00:50.6]} 40. Kg3 {[%clk 0:00:04.1]}
40... Rxd6 {[%clk 0:00:49]} 41. Re2+ {[%clk 0:00:02.8]} 41... Kf6 {[%clk
0:00:44.6]} 42. Nd5+ {[%clk 0:00:02.6]} 42... Kg5 {[%clk 0:00:42.3]} 43. Re7
{[%clk 0:00:03.2]} 43... Rbd8 {[%clk 0:00:36.1]} 44. Rxh7 {[%clk 0:00:01.9]}
44... Rxd5 {[%clk 0:00:35.1]} 45. Bxd5 {[%clk 0:00:02.5]} 45... Rxd5 {[%clk
0:00:34.1]} 46. Rh8 {[%clk 0:00:02.8]} 46... Rd3+ {[%clk 0:00:32.8]} 47. Kf2
{[%clk 0:00:02.6]} 47... Rd2+ {[%clk 0:00:30.2]} 48. Ke3 {[%clk 0:00:03.2]}
48... Rxb2 {[%clk 0:00:28.4]} 49. h7 {[%clk 0:00:03.5]} 49... Rh2 {[%clk
0:00:27.6]} 50. Kd3 {[%clk 0:00:03.2]} 50... b3 {[%clk 0:00:26.4]} 51. Kc3
{[%clk 0:00:03.6]} 51... b2 {[%clk 0:00:25.3]} 52. Rb8 {[%clk 0:00:04.5]} 52...
Rxh7 {[%clk 0:00:23.1]} 53. Rxb2 {[%clk 0:00:05.4]} 53... Rh3+ {[%clk
0:00:21.5]} 0-1

[Event "*** SCC Grand Prix: Titled Tuesday Blitz"]
[Site "Chess.com"]
[Date "2020.06.02"]
[Round "7"]
[White "yonaltimur"]
[Black "Mimsychess"]
[Result "0-1"]
[WhiteElo "1562"]
[BlackElo "2258"]
[TimeControl "180+1"]
[EndTime "11:21:44 PDT"]
[Termination "Mimsychess won by checkmate"]

1. e4 {[%clk 0:03:00.9]} 1... e5 {[%clk 0:02:59]} 2. Nf3 {[%clk 0:02:56.8]} 2...
Nc6 {[%clk 0:02:59.4]} 3. Bb5 {[%clk 0:02:55.2]} 3... a6 {[%clk 0:02:59.2]} 4.
Ba4 {[%clk 0:02:54.3]} 4... Nf6 {[%clk 0:02:59.7]} 5. d3 {[%clk 0:02:45.7]} 5...
Bc5 {[%clk 0:02:57.2]} 6. c3 {[%clk 0:02:44.3]} 6... b5 {[%clk 0:02:55]} 7. Bb3
{[%clk 0:02:42.6]} 7... O-O {[%clk 0:02:54.7]} 8. O-O {[%clk 0:02:41.4]} 8... d6
{[%clk 0:02:54.2]} 9. a4 {[%clk 0:02:39.7]} 9... Rb8 {[%clk 0:02:52.8]} 10. Nbd2
{[%clk 0:02:37]} 10... h6 {[%clk 0:02:49.6]} 11. Re1 {[%clk 0:02:30]} 11... Kh8
{[%clk 0:02:44]} 12. Nf1 {[%clk 0:02:28.2]} 12... Be6 {[%clk 0:02:33.3]} 13.
Bxe6 {[%clk 0:02:23.9]} 13... fxe6 {[%clk 0:02:34.2]} 14. Ne3 {[%clk 0:02:22.9]}
14... Qd7 {[%clk 0:02:22.2]} 15. h3 {[%clk 0:02:21]} 15... Rf7 {[%clk
0:02:17.2]} 16. Qc2 {[%clk 0:02:20]} 16... Rbf8 {[%clk 0:02:13.7]} 17. b4 {[%clk
0:02:19.5]} 17... Bb6 {[%clk 0:02:12.5]} 18. a5 {[%clk 0:02:16.5]} 18... Ba7
{[%clk 0:02:12]} 19. Qe2 {[%clk 0:02:14.4]} 19... Nh5 {[%clk 0:02:10.1]} 20. Nf1
{[%clk 0:02:11.5]} 20... Nf4 {[%clk 0:01:57.9]} 21. Bxf4 {[%clk 0:02:10.7]}
21... Rxf4 {[%clk 0:01:58.8]} 22. Ng3 {[%clk 0:02:08.2]} 22... Qf7 {[%clk
0:01:57.8]} 23. Rad1 {[%clk 0:02:02.1]} 23... Rxf3 {[%clk 0:01:52.8]} 24. gxf3
{[%clk 0:01:54.7]} 24... Qxf3 {[%clk 0:01:53.7]} 25. Qxf3 {[%clk 0:01:54]} 25...
Rxf3 {[%clk 0:01:54.6]} 26. Nh1 {[%clk 0:01:34.5]} 26... Rxh3 {[%clk 0:01:32.9]}
27. Kg2 {[%clk 0:01:34.2]} 27... Rh4 {[%clk 0:01:33.1]} 28. Ng3 {[%clk 0:01:33]}
28... Rf4 {[%clk 0:01:32.8]} 29. f3 {[%clk 0:01:31.2]} 29... Ne7 {[%clk
0:01:26.6]} 30. Rh1 {[%clk 0:01:30.8]} 30... Ng6 {[%clk 0:01:25.2]} 31. d4
{[%clk 0:01:29.4]} 31... exd4 {[%clk 0:01:21]} 32. cxd4 {[%clk 0:01:24.2]} 32...
Nh4+ {[%clk 0:01:21]} 33. Kf2 {[%clk 0:01:13.3]} 33... Rxf3+ {[%clk 0:01:16.4]}
34. Ke2 {[%clk 0:01:12.8]} 34... Rf4 {[%clk 0:01:04.6]} 35. Rhf1 {[%clk
0:00:54]} 35... Rg4 {[%clk 0:00:57.4]} 36. Nh1 {[%clk 0:00:45.2]} 36... Rxe4+
{[%clk 0:00:53]} 37. Kf2 {[%clk 0:00:36.5]} 37... Bxd4+ {[%clk 0:00:51.8]} 38.
Kg3 {[%clk 0:00:34.9]} 38... Nf5+ {[%clk 0:00:49.4]} 39. Kh3 {[%clk 0:00:31]}
39... Ne3 {[%clk 0:00:28.7]} 40. Rfe1 {[%clk 0:00:26.6]} 40... e5 {[%clk
0:00:24.1]} 41. Nf2 {[%clk 0:00:25]} 41... Rf4 {[%clk 0:00:24.3]} 42. Nd3 {[%clk
0:00:22.8]} 42... Rf3+ {[%clk 0:00:24.5]} 43. Kh2 {[%clk 0:00:20.9]} 43... e4
{[%clk 0:00:21.6]} 44. Nc1 {[%clk 0:00:16.8]} 44... Be5+ {[%clk 0:00:17.1]} 45.
Kg1 {[%clk 0:00:10.9]} 45... Nxd1 {[%clk 0:00:16.8]} 46. Rxd1 {[%clk 0:00:10.5]}
46... h5 {[%clk 0:00:14.3]} 47. Kg2 {[%clk 0:00:09.9]} 47... h4 {[%clk
0:00:13.4]} 48. Kh1 {[%clk 0:00:10.4]} 48... h3 {[%clk 0:00:13]} 49. Kg1 {[%clk
0:00:08]} 49... g5 {[%clk 0:00:11.5]} 50. Kh1 {[%clk 0:00:07.7]} 50... g4 {[%clk
0:00:11.7]} 51. Kg1 {[%clk 0:00:07.5]} 51... g3 {[%clk 0:00:12]} 52. Kh1 {[%clk
0:00:06]} 52... Bf4 {[%clk 0:00:11.6]} 53. Kg1 {[%clk 0:00:05.6]} 53... Be3+
{[%clk 0:00:11.1]} 54. Kh1 {[%clk 0:00:05.4]} 54... g2+ {[%clk 0:00:11.4]} 55.
Kh2 {[%clk 0:00:05.2]} 55... Rf1 {[%clk 0:00:07.8]} 56. Rxf1 {[%clk 0:00:03.6]}
56... gxf1=Q {[%clk 0:00:08.7]} 57. Ne2 {[%clk 0:00:03.4]} 57... Qg2# {[%clk
0:00:08.7]} 0-1